Cogmind - Beta 12 @@@ ROGUE MODE // 2024.02.10 @ 07:15:40 Player: Dosh Result: Self-destructed Performance ------------- Evolutions (3) 1500 Regions Visited (12) 2400 Robots Destroyed (211) 1055 Value Destroyed (7103) 7103 Prototype IDs (35) 700 Alien Tech Used (0) 0 Bonus (1841) 1841 TOTAL SCORE: 14599 Bonus ------- High Alert Combat Kills 1008 Follower Combat Kills 243 Entered Garrisons 400 Aligned with FarCom 300 Friendly Fire -110 Cogmind --------- Core Integrity 551/700 Matter 196/300 Energy 100/100 System Corruption 0% Temperature Cool (9) Movement Core (1650) Ox32 Location -7/Factory Parts ------- > --- POWER (1) -------- (None) > --- PROPULSION (4) --- (None) > --- UTILITY (6) ------ Huge Storage Unit Machine Analyzer System Shield Bomb Drone Bay (0/16) > --- WEAPON (2) ------- Enhanced Gauss Cannon > --- INVENTORY (25) --- Experimental Sensor Array Improved Medium Armor Plating Peak State ------------ > --- POWER ------------ Enhanced Nuclear Core > --- PROPULSION ------- Light Treads Light Treads Light Treads Light Treads > --- UTILITY ---------- High-capacity Storage Unit Machine Analyzer Improved Medium Armor Plating Improved Medium Armor Plating Advanced Shield Generator System Shield > --- WEAPON ----------- Advanced Plasma Cannon Enhanced Gauss Cannon > --- INVENTORY -------- Enhanced Nuclear Core Light Treads Huge Storage Unit Superbattery Experimental Sensor Array Advanced Terrain Scan Processor Transport Network Coupler Improved Weapon Cycler Improved Medium Armor Plating Long-range Tractor Beam Bomb Drone Bay Improved Assault Rifle Enhanced Gauss Cannon Rocket Launcher Improved Grenade Launcher Heavy Rocket Launcher Precision Grenade Launcher Makeshift Axe [Rating: 50] Favorites ----------- Power Ion Engine Engine Ion Engine Power Core Nuclear Core Propulsion Light Treads Treads Light Treads Utility Hardened Light Armor Plating Device Cooling System Storage High-capacity Storage Unit Processor Advanced Targeting Computer Hackware Hacking Suite Protection Hardened Light Armor Plating Weapon Improved Assault Rifle Energy Gun Improved EM Shotgun Energy Cannon Advanced Plasma Cannon Ballistic Gun Improved Assault Rifle Ballistic Cannon Hypervelocity Gauss Cannon Launcher Improved Grenade Launcher Slashing Weapon Makeshift Axe Build | -11 -10 -10 -9 -9 -9 -8 -8 -8 -8 -8 -8 -7 ------- Run | Jun Mat Min Mat Min Exi Min Mat Gar Mat Gar Mat Fac Slots Evolved 6 | . . . 2 . . . 2 . . . . 2 Power . | . . . . . . . . . . . . . Propulsion 2 | . . . . . . . 2 . . . . . Utility 4 | . . . 2 . . . . . . . . 2 Weapon . | . . . . . . . . . . . . . Parts Attached 155 | 8 10 4 31 1 . . 31 22 8 20 4 16 Power 13 | 2 . . 3 1 . . 2 1 . 2 1 1 Engine 10 | 2 . . 2 1 . . 2 . . 2 1 . Core 3 | . . . 1 . . . . 1 . . . 1 Reactor . | . . . . . . . . . . . . . Propulsion 32 | 2 2 1 7 . . . 7 4 3 4 1 1 Treads 32 | 2 2 1 7 . . . 7 4 3 4 1 1 Leg . | . . . . . . . . . . . . . Wheel . | . . . . . . . . . . . . . Hover . | . . . . . . . . . . . . . Flight . | . . . . . . . . . . . . . Utility 53 | 2 3 . 14 . . . 7 8 1 7 1 10 Device 17 | 1 2 . 3 . . . . 1 . 6 . 4 Storage 5 | 1 1 . . . . . 1 . . . . 2 Processor 5 | . . . 2 . . . 1 1 . . . 1 Hackware 2 | . . . . . . . . 1 . . . 1 Protection 24 | . . . 9 . . . 5 5 1 1 1 2 Artifact . | . . . . . . . . . . . . . Weapon 57 | 2 5 3 7 . . . 15 9 4 7 1 4 Energy Gun 10 | . 3 . 1 . . . 3 3 . . . . Energy Cannon 6 | . 1 . 1 . . . . . . 3 1 . Ballistic Gun 20 | 2 1 2 5 . . . 6 2 1 1 . . Ballistic Cannon 7 | . . . . . . . . 1 2 1 . 3 Launcher 9 | . . 1 . . . . 3 2 1 2 . . Special Weapon . | . . . . . . . . . . . . . Impact Weapon . | . . . . . . . . . . . . . Slashing Weapon 5 | . . . . . . . 3 1 . . . 1 Piercing Weapon . | . . . . . . . . . . . . . Special Melee Weapon . | . . . . . . . . . . . . . Unidentified Prototypes 4 | . . . 1 . . . 1 . . . . 2 Corrupted Parts 2 | . . . . . . . . 2 . . . . System Corruption 10 | . . . . . . . . 10 . . . . Parts Lost 35 | . 1 4 6 . . . 1 6 1 2 4 10 Power 3 | . . . 1 . . . . . . 1 1 . Propulsion 13 | . . 2 . . . . . 4 . 1 1 5 Utility 11 | . . . 4 . . . 1 . . . 2 4 Weapon 8 | . 1 2 1 . . . . 2 1 . . 1 Highest Loss Streak 5 | . 1 4 3 . . . 1 3 1 1 1 5 To Critical Strikes . | . . . . . . . . . . . . . Average Slot Usage (%) 93 | . 99 94 94 97 100 100 99 85 99 99 96 64 Engine 7 | . 14 14 10 8 11 11 9 3 . 7 7 . Core 2 | . . . . . . . . 5 9 1 . 3 Treads 27 | . 28 26 20 22 22 22 36 23 36 35 34 13 Device 6 | . 14 14 9 . . . . . . 17 17 6 Storage 9 | . 14 14 11 11 11 11 9 9 9 9 9 6 Processor 6 | . . . 8 11 11 11 9 9 9 . . 6 Hackware 2 | . . . . . . . . 7 9 . . 6 Protection 10 | . . . 12 22 22 22 17 8 9 8 8 5 Energy Gun 2 | . 10 12 . . . . 2 5 4 . . . Energy Cannon 1 | . . . . . . . . . . 8 8 1 Ballistic Gun 11 | . 16 12 19 22 22 22 15 7 4 . . . Ballistic Cannon 3 | . . . . . . . . 3 8 9 9 10 Naked Turns . | . . . . . . . . . . . . . Heaviest Build 97 | 14 34 33 41 41 39 39 70 68 68 80 78 97 Greatest Support 83 | 40 40 40 43 43 43 43 83 80 80 80 80 80 Greatest Overweight (x) 32 | . . 8 1 . . . . 1 . 1 1 32 Average Overweight (x) . | . . . . . . . . . . . . 3 Largest Inventory Capacity 25 | 8 15 15 15 15 15 15 20 20 20 20 20 25 Average Capacity 17 | 6 13 15 15 15 15 15 19 20 20 20 20 19 Most Carried 20 | 2 13 15 15 15 15 15 20 20 20 20 20 20 Average Carried 15 | 1 8 14 13 14 14 15 19 18 18 17 19 11 Final Capacity 25 | 8 15 15 15 15 15 15 20 20 20 20 20 25 Final Carried 20 | 2 13 15 15 15 15 15 20 18 20 20 19 2 Class Distribution -------------------- 82% | Mutant 17% | Scavenger-Mutant Dominant Class ---------------- Mutant | -10/Materials Mutant | -10/Mines Mutant | -9/Materials Mutant | -9/Mines Mutant | -9/Exiles Mutant | -8/Mines Mutant | -8/Materials Mutant | -8/Garrison Scavenger-Mutant | -8/Materials Mutant | -8/Garrison Scavenger-Mutant | -8/Materials Mutant | -7/Factory Resources | -11 -10 -10 -9 -9 -9 -8 -8 -8 -8 -8 -8 -7 ----------- Run | Jun Mat Min Mat Min Exi Min Mat Gar Mat Gar Mat Fac Matter Collected 5139 | 279 168 66 1010 131 . 45 827 595 635 895 207 281 Remotely 242 | . . . . . . . . . . . . 242 Salvage Created 7080 | 139 658 155 1451 244 . 45 1665 562 747 835 316 263 Parts 428 | 10 34 11 99 10 . 5 108 31 50 43 19 8 Haulers Intercepted 7 | . 2 . 2 . . . 2 . . . . 1 Recyclers Shooed 3 | 1 . . . . . . 1 . 1 . . . Parts Field Recycled . | . . . . . . . . . . . . . Retrieved Matter . | . . . . . . . . . . . . . Parts Self-Destructed . | . . . . . . . . . . . . . Prevented . | . . . . . . . . . . . . . Kills | -11 -10 -10 -9 -9 -9 -8 -8 -8 -8 -8 -8 -7 ------- Run | Jun Mat Min Mat Min Exi Min Mat Gar Mat Gar Mat Fac Combat Hostiles Destroyed 171 | . 11 14 31 6 . 3 29 19 20 27 6 5 Melee 3 | . . . . . . . 2 . . 1 . . Guns 88 | . 10 2 31 6 . 3 22 10 4 . . . Cannons 34 | . 1 . . . . . . . 7 18 3 5 AOE 45 | . . 12 . . . . 5 9 9 8 2 . Classes Destroyed 20 | 2 5 2 2 . . . 2 1 1 1 2 2 Worker 6 | . 1 1 . 1 . . 3 . . . . . Builder 5 | . . . . . . . 3 . 1 . 1 . Tunneler 6 | 3 . 1 . 1 . . 1 . . . . . Hauler 7 | . 2 . 2 . . . 2 . . . . 1 Recycler 8 | 1 1 . . 1 . . 3 . . . 1 1 Mechanic 1 | . . . . . . . . . . . 1 . Operator 5 | . . . 3 . . . 1 . 1 . . . Watcher 14 | . 2 . 3 . . . 5 . 3 . 1 . Swarmer 40 | . 3 . 7 4 . 3 7 3 3 8 2 . Cutter 2 | . . . . . . . . 2 . . . . Saboteur 1 | . . . . . . . . . . 1 . . Grunt 73 | . 8 . 13 1 . . 15 8 8 15 2 3 Brawler 1 | . . . . . . . . . . . 1 . Duelist 5 | . . . 1 1 . . . . 3 . . . Protector 1 | . . . . . . . . . 1 . . . Sentry 31 | . . 2 10 . . . 5 5 5 3 1 . Specialist 3 | . . . . . . . 2 1 . . . . Programmer 1 | . . . . . . . . . . . . 1 Heavy 1 | . . . . . . . . . . . . 1 Assembled 12 | . . 12 . . . . . . . . . . Best Kill Streak 14 | 4 3 14 4 4 . 3 4 5 9 7 2 3 Combat Bots Only 12 | . 3 12 4 2 . 3 4 5 9 7 2 3 Max Kills in Single Turn 4 | 1 2 4 1 2 . 1 2 2 3 2 2 1 Gunslinging . | . . . . . . . . . . . . . Exploded 4 | . . 4 . . . . 2 2 3 2 2 . Melee 1 | . . . . . . . 1 . . 1 . . Uniques/NPCs Destroyed . | . . . . . . . . . . . . . Combat | -11 -10 -10 -9 -9 -9 -8 -8 -8 -8 -8 -8 -7 -------- Run | Jun Mat Min Mat Min Exi Min Mat Gar Mat Gar Mat Fac Damage Taken 8769 | . 348 690 1259 117 . 31 1976 1392 564 632 435 1325 Core 1070 | . 37 178 249 13 . . 152 162 48 39 43 149 Absorbed by Shields 566 | . . . 128 . . . . 4 . 233 35 166 Regen/Repaired (Parts) 599 | . 73 . 179 . . . 347 . . . . . Core Remaining (%) 41 | 100 . 14 . . . 34 . . . . 19 . Volleys Fired 522 | 9 44 16 104 15 . 5 115 61 52 62 18 21 Largest 2 | 2 2 2 2 2 . 2 2 2 2 2 2 2 Hottest 159 | 40 113 75 113 46 . 46 68 106 106 159 155 155 Shots Fired 967 | 18 81 25 207 31 . 10 215 109 82 114 36 39 Gun 675 | 18 71 17 198 31 . 10 211 83 30 6 . . Cannon 254 | . 10 . 9 . . . . 13 46 101 36 39 Launcher 38 | . . 8 . . . . 4 13 6 7 . . Special . | . . . . . . . . . . . . . Kinetic 738 | 18 42 8 191 31 . 10 196 72 59 59 18 34 Thermal 90 | . 10 . 9 . . . . . . 48 18 5 Explosive 38 | . . 8 . . . . 4 13 6 7 . . Electromagnetic 101 | . 29 9 7 . . . 15 24 17 . . . Robot Hit Streak 44 | 4 7 25 44 4 . 3 21 21 13 19 8 8 Robot Miss Streak 6 | 3 6 1 3 3 . 2 3 3 5 4 2 3 Penetration Max . | . . . . . . . . . . . . . Secondary Targets 10 | . . 1 4 1 . . 1 3 . . . . Max Gunslinging Chain 1 | . . 1 1 1 . . 1 1 . . . . Shots Hit Robots 658 | 8 53 24 156 18 . 5 159 73 54 65 20 23 Core Hits 381 | 6 31 39 65 9 . 3 87 40 53 32 8 8 Critical Kills 13 | . 1 . 1 . . . . . 4 6 1 . Critical Parts Destroyed 23 | . . . 1 . . . 1 3 9 9 . . Critical Strikes 44 | . 1 . 2 . . . 1 3 14 15 6 2 Meltdown 1 | . . . . . . . . . . . 1 . Destroy 36 | . 1 . 2 . . . 1 3 14 15 . . Blast 7 | . . . . . . . . . . . 5 2 Melee Attacks 10 | . . . . . . . 8 1 . . . 1 Impact . | . . . . . . . . . . . . . Slashing 10 | . . . . . . . 8 1 . . . 1 Piercing . | . . . . . . . . . . . . . Sneak Attacks . | . . . . . . . . . . . . . Combat Hostiles . | . . . . . . . . . . . . . Follow-up Attacks . | . . . . . . . . . . . . . Damage Inflicted 16405 | 99 783 1044 2455 354 . 82 3491 2147 1805 2391 953 801 Guns 7519 | 99 591 189 2323 334 . 82 2501 951 401 48 . . Cannons 3853 | . 123 . 125 . . . . 62 491 1564 722 766 Explosions 4788 | . 58 846 . . . . 887 1134 858 779 226 . Melee 79 | . . . . . . . 79 . . . . . Ramming 166 | . 11 9 7 20 . . 24 . 55 . 5 35 Kinetic 8257 | 99 236 58 2221 334 . 82 2246 722 634 546 445 634 Thermal 2211 | . 181 . 125 . . . 101 . 103 1066 503 132 Explosive 4300 | . . 846 . . . . 786 1134 755 779 . . Electromagnetic 1392 | . 355 131 102 . . . 255 291 258 . . . Impact . | . . . . . . . . . . . . . Slashing 79 | . . . . . . . 79 . . . . . Piercing . | . . . . . . . . . . . . . Highest Corruption 10 | . 2 3 4 4 4 4 . 10 10 10 10 . Average Corruption 6 | . 2 2 3 4 4 4 . 7 10 10 10 . Corruption Purged . | . . . . . . . . . . . . . Corruption Blocked . | . . . . . . . . . . . . . Effects 207 | . 5 9 39 18 8 3 . . 44 60 21 . Message Errors 46 | . 1 1 7 3 3 . . . 13 15 3 . Matter Fused 53 | . 2 3 10 5 5 . . . 8 17 3 . Heat Flow Errors 25 | . 1 1 6 1 . . . . 4 8 4 . Energy Discharges 27 | . . 1 7 4 . 1 . . 4 7 3 . Parts Rejected 4 | . . . 1 1 . . . . 2 . . . Parts Fused 4 | . . . . . . . . . 2 . 2 . Data Loss (minor) 18 | . 1 2 2 1 . 1 . . 5 4 2 . Data Loss (major) 10 | . . 1 4 2 . . . . 1 2 . . Misfires 7 | . . . 2 1 . . . . 1 2 1 . Alerts 7 | . . . . . . 1 . . 2 3 1 . Misdirections 3 | . . . . . . . . . 1 . 2 . Weapon Failures 3 | . . . . . . . . . 1 2 . . Overload Shots . | . . . . . . . . . . . . . Overflow Damage 226 | . . 4 . . . . 85 . 12 54 55 16 Projectiles 80 | . . . . . . . . . 10 22 32 16 Explosions 144 | . . 4 . . . . 85 . . 32 23 . Melee 2 | . . . . . . . . . 2 . . . Knockbacks 17 | . . 1 . . . . . 1 3 5 5 2 Impact 1 | . . 1 . . . . . . . . . . Kinetic 15 | . . . . . . . . 1 3 4 5 2 Secondary 1 | . . . . . . . . . . 1 . . Self-Inflicted Damage 473 | . . 119 . . . . . 209 . 77 68 . Shots 14 | . . 5 . . . . . 5 . 3 1 . Rammed 17 | . 1 1 2 3 . . 2 . 3 . 1 4 Targets Rammed 21 | . 1 1 2 4 . . 4 . 4 . 1 4 Kicked . | . . . . . . . . . . . . . Crushed 4 | . . . . 1 . . 2 . 1 . . . Highest Temperature 573 | . 248 106 214 239 . 30 288 209 399 355 573 288 Average Temperature 86 | . 117 71 54 56 . 15 63 63 88 106 148 107 Received Heat Transfer 2753 | . 132 92 416 21 . . 801 366 270 273 174 208 Effects 13 | . . . . . . . 1 . 3 . 6 3 Shutdowns 2 | . . . . . . . . . 1 . 1 . Energy Bleed 3 | . . . . . . . 1 . 1 . 1 . Interference 3 | . . . . . . . . . . . . 3 Damage (minor) 1 | . . . . . . . . . 1 . . . Damage (major) 4 | . . . . . . . . . . . 4 . Siege Activations . | . . . . . . . . . . . . . Robots Corrupted . | . . . . . . . . . . . . . Combat Hostiles . | . . . . . . . . . . . . . Parts Fried 4 | . . . . . . . . 1 3 . . . Impact Corruptions 1 | . . . . . . . . . 1 . . . Robots Melted 1 | . . . . . . . . . . . 1 . Combat Hostiles 1 | . . . . . . . . . . . 1 . Parts Melted 4 | . 1 . . . . . . . . 1 2 . Heat Transferred 2969 | . 272 . 222 . . . 100 . 150 1475 550 200 Parts Sabotaged 5 | . . . . . . . . . . 5 . . Parts Stolen . | . . . . . . . . . . . . . Parts Stripped . | . . . . . . . . . . . . . Power Chain Reactions 5 | . 1 . . . . . 2 . 2 . . . Missiles Intercepted . | . . . . . . . . . . . . . Alert | -11 -10 -10 -9 -9 -9 -8 -8 -8 -8 -8 -8 -7 ------- Run | Jun Mat Min Mat Min Exi Min Mat Gar Mat Gar Mat Fac Peak Influence 1357 | 20 205 73 534 297 . 70 500 1333 1008 1357 722 305 Initial 661 | . 13 18 19 132 . . 27 240 649 351 661 261 Average 379 | 5 66 66 284 208 . 68 179 762 671 878 619 149 Maximum Alert Level 4 | . 1 . 2 1 . . 2 4 3 4 3 1 Low Security (%) 35 | 100 97 100 35 27 . 100 47 . . . . 54 Level 1 26 | . 2 . 30 72 . . 50 11 . 5 . 45 Level 2 20 | . . . 34 . . . 1 37 51 26 89 . Level 3 12 | . . . . . . . . 31 48 43 10 . Level 4 5 | . . . . . . . . 19 . 24 . . Level 5 . | . . . . . . . . . . . . . High Security . | . . . . . . . . . . . . . Max Security . | . . . . . . . . . . . . . Squads Dispatched 26 | . 2 . 7 . . . 6 . 4 . 1 6 Investigation 11 | . 2 . 3 . . . 4 . 2 . . . Extermination 1 | . . . . . . . . . . . . 1 Reinforcement 13 | . . . 4 . . . 2 . 1 . 1 5 Assault 1 | . . . . . . . . . 1 . . . Garrison . | . . . . . . . . . . . . . Intercept . | . . . . . . . . . . . . . Searches Triggered . | . . . . . . . . . . . . . Construction Impeded 2 | . . . 1 . . . . . . . . 1 Haulers Reinforced 1 | . . . . . . . . . . . . 1 Active Scanning Responses . | . . . . . . . . . . . . . Cargo Convoy Interrupts . | . . . . . . . . . . . . . Stealth | -11 -10 -10 -9 -9 -9 -8 -8 -8 -8 -8 -8 -7 --------- Run | Jun Mat Min Mat Min Exi Min Mat Gar Mat Gar Mat Fac Distress Signals 10 | . . . 2 . . . 2 . 3 . . 3 Communications Jammed . | . . . . . . . . . . . . . Distress Signals . | . . . . . . . . . . . . . Times Spotted 259 | . 19 24 42 8 . 2 43 18 31 32 14 26 Peak Tracking Total 13 | . 4 13 3 2 . 2 4 5 5 4 5 4 Tactical Retreats 13 | . 1 . 1 . . . . 2 . 7 . 2 Traps | -11 -10 -10 -9 -9 -9 -8 -8 -8 -8 -8 -8 -7 ------- Run | Jun Mat Min Mat Min Exi Min Mat Gar Mat Gar Mat Fac Traps Triggered 14 | . 1 . 3 . . . . 7 1 . 1 1 Indirectly . | . . . . . . . . . . . . . Trap Hack Attempts . | . . . . . . . . . . . . . Triggered . | . . . . . . . . . . . . . Disarmed . | . . . . . . . . . . . . . Reprogrammed . | . . . . . . . . . . . . . Reused . | . . . . . . . . . . . . . Traps Extracted . | . . . . . . . . . . . . . Installed . | . . . . . . . . . . . . . Triggered . | . . . . . . . . . . . . . Exploded 1 | . . . . . 1 . . . . . . . Machines | -11 -10 -10 -9 -9 -9 -8 -8 -8 -8 -8 -8 -7 ---------- Run | Jun Mat Min Mat Min Exi Min Mat Gar Mat Gar Mat Fac Machines Disabled 17 | . 1 . 1 1 . . 5 5 1 1 2 . Max in Single Turn 2 | . 1 . . . . . 1 2 1 1 1 . Garrison Relay 5 | . . . . . . . . 5 . . . . Machines Repaired . | . . . . . . . . . . . . . Machines Sabotaged . | . . . . . . . . . . . . . Overloaded Fab Kills . | . . . . . . . . . . . . . Hacking | -11 -10 -10 -9 -9 -9 -8 -8 -8 -8 -8 -8 -7 --------- Run | Jun Mat Min Mat Min Exi Min Mat Gar Mat Gar Mat Fac Machines Accessed 53 | . 8 1 12 1 2 . 14 2 6 3 2 2 Terminals 39 | . 7 . 9 1 . . 11 2 4 3 2 . Fabricators 1 | . . . . . . . . . . . . 1 Repair Stations 5 | . 1 . 1 . . . 1 . 1 . . 1 Recycling Units 2 | . . . 1 . . . 1 . . . . . Scanalyzers 1 | . . . 1 . . . . . . . . . Garrison Access 2 | . . . . . . . 1 . 1 . . . Total Hacks 138 | . 21 1 38 2 2 . 41 5 17 4 4 3 Successful 73 | . 8 1 21 . 2 . 22 1 9 4 3 2 Failed 64 | . 13 . 16 2 . . 19 4 8 . 1 1 Catastrophic 13 | . 3 . 3 1 . . 2 1 2 . . 1 Database Lockouts 1 | . . . 1 . . . . . . . . . Manual 77 | . 17 . 19 2 1 . 19 . 14 1 4 . Terminals 105 | . 19 . 26 2 . . 30 5 15 4 4 . Fabricators 1 | . . . . . . . . . . . . 1 Repair Stations 19 | . 2 . 5 . . . 9 . 1 . . 2 Recycling Units 2 | . . . 1 . . . 1 . . . . . Scanalyzers 6 | . . . 6 . . . . . . . . . Garrison Access 2 | . . . . . . . 1 . 1 . . . Terminal Hacks 37 | . 5 1 7 . 2 . 10 1 6 3 2 . Record 2 | . . . 1 . 1 . . . . . . . Robot Analysis 7 | . 2 . 2 . . . 2 . 1 . . . Prototype ID Bank 4 | . 3 . . . . . 1 . . . . . Open Door 2 | . . 1 . . . . . . . 1 . . Emergency Access Points 2 | . . . . . . . . 1 . 1 . . Alert Level 3 | . . . . . . . 1 . 1 . 1 . Unreport Threat 8 | . . . 1 . . . 3 . 3 . 1 . Locate Traps 1 | . . . 1 . . . . . . . . . Recall Reinforcements 2 | . . . 1 . . . . . 1 . . . Hauler Manifests 1 | . . . 1 . . . . . . . . . Zone Layout 3 | . . . . . . . 3 . . . . . Security Stations 1 | . . . . . . . . . . 1 . . EX-Prototype ID Bank 1 | . . . . . 1 . . . . . . . Fabricator Hacks 1 | . . . . . . . . . . . . 1 Network Status 1 | . . . . . . . . . . . . 1 Repair Station Hacks 14 | . 2 . 4 . . . 7 . . . . 1 Scan Component 8 | . 1 . 2 . . . 4 . . . . 1 Repair 6 | . 1 . 2 . . . 3 . . . . . Recycling Unit Hacks . | . . . . . . . . . . . . . Scanalyzer 6 | . . . 6 . . . . . . . . . Insert Component 3 | . . . 3 . . . . . . . . . Analyze 3 | . . . 3 . . . . . . . . . Garrison Access Hacks 2 | . . . . . . . 1 . 1 . . . Unlock Access 2 | . . . . . . . 1 . 1 . . . Unauthorized Hacks 13 | . 1 . 4 . . . 4 . 2 1 1 . Terminals 11 | . 1 . 3 . . . 3 . 2 1 1 . Assimilate 1 | . . . . . . . 1 . . . . . Botnet 6 | . . . 2 . . . 2 . 1 . 1 . Operators 3 | . 1 . 1 . . . . . 1 . . . Override 1 | . . . . . . . . . . 1 . . Fabricators . | . . . . . . . . . . . . . Repair Stations . | . . . . . . . . . . . . . Recycling Units 2 | . . . 1 . . . 1 . . . . . Tunnel 2 | . . . 1 . . . 1 . . . . . Scanalyzers . | . . . . . . . . . . . . . Garrison Access . | . . . . . . . . . . . . . Data Cores Recovered 1 | . . . . . . . 1 . . . . . Used . | . . . . . . . . . . . . . Hacking Detections 38 | . 7 . 9 1 . . 12 2 4 . 2 1 Full Trace Events 11 | . 5 . 1 . . . 3 1 1 . . . Feedback Events 1 | . . . 1 . . . . . . . . . Corruption 1 | . . . 1 . . . . . . . . . Feedback Blocked . | . . . . . . . . . . . . . Robot Schematics Acquired . | . . . . . . . . . . . . . Robots Built . | . . . . . . . . . . . . . Authchips . | . . . . . . . . . . . . . Time . | . . . . . . . . . . . . . Total Robot Build Rating . | . . . . . . . . . . . . . Part Schematics Acquired 3 | . . . 3 . . . . . . . . . Parts Built . | . . . . . . . . . . . . . Authchips . | . . . . . . . . . . . . . Time . | . . . . . . . . . . . . . Total Part Build Rating . | . . . . . . . . . . . . . Parts Repaired 6 | . 1 . 2 . . . 3 . . . . . Time 224 | . 26 . 83 . . . 115 . . . . . Parts Recycled . | . . . . . . . . . . . . . Recycled Matter . | . . . . . . . . . . . . . Retrieved Matter . | . . . . . . . . . . . . . Retrieved Components . | . . . . . . . . . . . . . Parts Scanalyzed 3 | . . . 3 . . . . . . . . . Part Schematics Acquired 3 | . . . 3 . . . . . . . . . Parts Damaged . | . . . . . . . . . . . . . Bothacking | -11 -10 -10 -9 -9 -9 -8 -8 -8 -8 -8 -8 -7 ------------ Run | Jun Mat Min Mat Min Exi Min Mat Gar Mat Gar Mat Fac Used RIF Installer . | . . . . . . . . . . . . . Robots Hacked . | . . . . . . . . . . . . . Non-combat . | . . . . . . . . . . . . . Combat . | . . . . . . . . . . . . . Robot Hacks Applied . | . . . . . . . . . . . . . Relay Couplers Released 22 | . . . . . . . . 22 . . . . Machine Destruction 22 | . . . . . . . . 22 . . . . Fabnet Peak Effective % . | . . . . . . . . . . . . . Robots Rewired 3 | . . . . . . . . . 1 2 . . Allies Hacked . | . . . . . . . . . . . . . Hacks Repelled . | . . . . . . . . . . . . . Allies | -11 -10 -10 -9 -9 -9 -8 -8 -8 -8 -8 -8 -7 -------- Run | Jun Mat Min Mat Min Exi Min Mat Gar Mat Gar Mat Fac Total Allies 7 | . . 3 . 1 . . . . 1 2 . . Largest Group 3 | . . 3 1 1 1 . . . 1 2 . . Highest-Rated Group 59 | . . 40 16 31 31 . . . 16 59 . . Highest-Rated Ally 39 | . . 16 16 31 31 . . . 16 39 . . Total Orders 1 | . . . . . . . . . . . . 1 RETURN 1 | . . . . . . . . . . . . 1 Ally Attacks 77 | . . 12 7 24 . . . . . 18 . 16 Total Damage 866 | . . 172 60 343 . . . . . 291 . . Kills 11 | . . 2 1 4 . . . . . 4 . . Allies Corrupted . | . . . . . . . . . . . . . Allies Melted . | . . . . . . . . . . . . . Intel | -11 -10 -10 -9 -9 -9 -8 -8 -8 -8 -8 -8 -7 ------- Run | Jun Mat Min Mat Min Exi Min Mat Gar Mat Gar Mat Fac Robot Analysis Total 7 | . 2 . 2 . . . 2 . 1 . . . Derelict Logs Recovered 5 | . . 2 . 3 . . . . . . . . Drone Launches 25 | . . . . . . . . . . . . 25 Drone Recoveries 9 | . . . . . . . . . . . . 9 Exploration | -11 -10 -10 -9 -9 -9 -8 -8 -8 -8 -8 -8 -7 ------------- Run | Jun Mat Min Mat Min Exi Min Mat Gar Mat Gar Mat Fac Turns Passed 16017 | 124 1439 371 2453 903 360 190 3152 2240 1163 1499 511 1612 Spaces Moved 7224 | 58 779 190 1168 530 225 110 1300 826 562 746 262 468 Core 96 | 5 . 1 . . . . . . . . . 90 Treads 7128 | 53 779 189 1168 530 225 110 1300 826 562 746 262 378 Legs . | . . . . . . . . . . . . . Wheels . | . . . . . . . . . . . . . Hover . | . . . . . . . . . . . . . Flight . | . . . . . . . . . . . . . Fastest Speed 50 | 50 160 160 160 160 160 160 160 165 165 162 160 160 Average Speed 181 | 150 160 166 166 160 160 160 168 229 165 163 167 315 Slowest Speed 1650 | 160 160 450 240 160 160 160 170 250 165 243 240 1650 Overloaded Moves . | . . . . . . . . . . . . . Propulsion Burnouts . | . . . . . . . . . . . . . Robots Hopped . | . . . . . . . . . . . . . Cave-ins Triggered 1 | . . 1 . . . . . . . . . . Exploration Rate (%) 59 | 5 99 48 97 98 61 26 91 82 42 72 34 16 Regions Visited 12 Branch Regions 4 Pre-discovered Areas 6 | . . 2 1 1 1 . 1 . . . . . Known Exits Taken 2 | . . . . . . . 1 . 1 . . . Unknown Exits Taken 8 | 1 1 1 1 1 1 1 . . . . 1 . Scrap Searched 1 | . . . . 1 . . . . . . . . Spaces Dug 6 | . . . . . . . 3 . . . . 3 Terrain Destroyed 208 | . . 35 . . . . 25 55 32 16 27 18 Melee 4 | . . . . . . . 3 . . . . 1 Projectile 34 | . . . . . . . . . . 1 16 17 AOE 170 | . . 35 . . . . 22 55 32 15 11 . Terrain Rammed . | . . . . . . . . . . . . . Walls Destroyed . | . . . . . . . . . . . . . Machines Disabled . | . . . . . . . . . . . . . Actions | -11 -10 -10 -9 -9 -9 -8 -8 -8 -8 -8 -8 -7 --------- Run | Jun Mat Min Mat Min Exi Min Mat Gar Mat Gar Mat Fac Total 9131 | 75 894 222 1472 555 226 114 2040 1063 709 904 299 558 Wait 1044 | . 47 6 140 1 . . 553 133 81 39 11 33 Move 7212 | 57 778 189 1167 529 224 109 1300 823 562 745 261 468 Hop . | . . . . . . . . . . . . . Pick Up 59 | 1 10 3 10 3 1 . 11 6 . 5 2 7 Fast Attach 40 | 7 2 1 8 . . . 4 4 2 7 3 2 Attach 36 | . 1 1 9 1 . . 3 8 1 2 1 9 Detach 9 | . 2 . 2 . . . 1 1 . . . 3 Swap 79 | 1 7 2 14 . . . 24 10 5 11 . 5 Drop 59 | . 2 3 16 2 1 . 17 6 . 5 2 5 Fire 522 | 9 44 16 104 15 . 5 115 61 52 62 18 21 Melee 10 | . . . . . . . 8 1 . . . 1 Ram 1 | . . . . . . . . . . . . 1 Kick . | . . . . . . . . . . . . . Crush 20 | . 1 1 2 4 . . 4 . 4 . 1 3 Escape Stasis 10 | . . . . . . . . 10 . . . . Rewire 30 | . . . . . . . . . 2 28 . . Trap . | . . . . . . . . . . . . . Miscellaneous . | . . . . . . . . . . . . . Route ------- -11/Junkyard -10/Materials (discovered 5 exits: *Mat x3 / *Min x2) -10/Mines -9/Materials (discovered 5 exits: *Mat x3 / *Min / [*Sto]) -9/Mines (discovered 3 exits: *Mat x2 / *Exi) -9/Exiles (discovered 2 exits: [*Min x2]) -8/Mines -8/Materials (discovered 4 exits: *Fac x3 / Gar) -8/Garrison (discovered 3 exits: *Mat x3) -8/Materials (discovered 2 exits: *Fac / Gar) -8/Garrison (discovered 3 exits: *Mat x3) -8/Materials -7/Factory (discovered 1 exit: [*Fac]) History --------- Turn | Location | Event 3 | -11/Junkyard | Discovered new exit (range 16) 125 | -11/Junkyard | Entered Materials 282 | -10/Materials | Discovered new exit (range 3) 308 | -10/Materials | Build established: Mutant 574 | -10/Materials | Discovered new exit (range 7) 1181 | -10/Materials | Discovered new exit (range 7) 1235 | -10/Materials | Discovered new exit (range 8) 1286 | -10/Materials | Repaired Lgt. Treads 1516 | -10/Materials | Discovered new exit (range 8) 1564 | -10/Materials | Entered Mines 1686 | -10/Mines | Assisted by bots powering up and referring to "LRC-V3" 1830 | -10/Mines | Learned location of Zion (-6) 1850 | -10/Mines | Found the Drone Emporium 1863 | -10/Mines | Found Prototype Device 1874 | -10/Mines | Assembled infested the area 1881 | -10/Mines | Discovered new exit (range 12) 1899 | -10/Mines | Core integrity fell below 50% 1904 | -10/Mines | Crushed by falling debris 1904 | -10/Mines | Core integrity fell below 20% 1923 | -10/Mines | Destroyed 12 combat bots 1935 | -10/Mines | Lost 4 parts (2n2w) 1935 | -10/Mines | Entered Materials 1935 | -9/Materials | Accompanied by 1 ally 1935 | -9/Materials | Evolved 2 slots: Utility x2 1935 | -9/Materials | Identified Bomb Drone Bay 1936 | -9/Materials | Discovered new exit (range 14) 2203 | -9/Materials | Lost 3 parts (1p1u1w) 2310 | -9/Materials | Discovered new exit (range 9) 2518 | -9/Materials | Central database locked down 2763 | -9/Materials | Discovered new exit (range 14) 2898 | -9/Materials | Core integrity fell below 50% 3412 | -9/Materials | Repaired Imp. Assault Rifle 3445 | -9/Materials | Repaired Hrd. Light Armor Plating 3544 | -9/Materials | Discovered new exit (range 15) 3950 | -9/Materials | Discovered new exit (range 15) 4388 | -9/Materials | Entered Mines 4390 | -9/Mines | Escorted by a lone wolf Derelict 4410 | -9/Mines | Learned location of Storage (-9) 4532 | -9/Mines | Found a damaged Exp. Sensor Array with a note attached 4535 | -9/Mines | Found Prototype Device 4548 | -9/Mines | Deemed a non-threat by the Exiles lab entrance 4548 | -9/Mines | Discovered new exit (range 5) 4605 | -9/Mines | A weapon hastily lodged in a ceiling crevice suddenly fell to the ground 4632 | -9/Mines | Met a Derelict bent on vengeance 4650 | -9/Mines | Discovered new exit (range 5) 4674 | -9/Mines | Learned 2 Materials zone layouts 4908 | -9/Mines | Learned Materials terminal intel 4929 | -9/Mines | Discovered new exit (range 10) 5166 | -9/Mines | Learned Materials trap positions 5291 | -9/Mines | Entered Exiles 5291 | -9/Exiles | Accompanied by 1 ally 5314 | -9/Exiles | Discovered new exit (range 15) 5347 | -9/Exiles | Met 8R-AWN 5371 | -9/Exiles | Met EX-HEX 5426 | -9/Exiles | Met EX-BIN 5450 | -9/Exiles | Aligned with FarCom system 5451 | -9/Exiles | Given EX-Vault access code 5488 | -9/Exiles | Opened EX-Vault 5502 | -9/Exiles | Found Superbattery 5533 | -9/Exiles | Warned to stay clear of 0b10 Research branches 5555 | -9/Exiles | Exiles lab attacked by MAIN.C 5639 | -9/Exiles | Discovered new exit (range 10) 5651 | -9/Exiles | Left Exiles lab with Superbattery 5651 | -9/Exiles | Entered Mines 5750 | -8/Mines | Discovered new exit (range 11) 5841 | -8/Mines | Entered Materials 5841 | -8/Materials | Evolved 2 slots: Propulsion x2 5843 | -8/Materials | Loaded intel: 18 trap records 5844 | -8/Materials | Loaded intel: 12 terminal locations 6199 | -8/Materials | Build established: Scavenger-Mutant 6608 | -8/Materials | Build established: Mutant 6729 | -8/Materials | Discovered new exit (range 16) 7133 | -8/Materials | Discovered new exit (range 16) 7284 | -8/Materials | Repaired Hrd. Light Armor Plating 7318 | -8/Materials | Repaired Hrd. Light Armor Plating 7370 | -8/Materials | Repaired Imp. Assault Rifle 8792 | -8/Materials | Discovered new exit (range 10) 8993 | -8/Materials | Identified exit to Garrison 8993 | -8/Materials | Entered Garrison 9070 | -8/Garrison | Triggered checkpoint 9239 | -8/Garrison | Triggered checkpoint 9302 | -8/Garrison | Triggered checkpoint 9384 | -8/Garrison | Triggered checkpoint 9439 | -8/Garrison | Garrison Relay disabled 9607 | -8/Garrison | Discovered new exit (range 15) 9921 | -8/Garrison | Discovered new exit (range 8) 10074 | -8/Garrison | Triggered checkpoint 10084 | -8/Garrison | Core integrity fell below 50% 10117 | -8/Garrison | Lost 3 parts (1n2w) 10209 | -8/Garrison | Discovered new exit (range 9) 10460 | -8/Garrison | Attempted to access garrison exit controls, blocked by remote lockdown 10751 | -8/Garrison | Garrison Relay disabled 10751 | -8/Garrison | Garrison Relay disabled 10754 | -8/Garrison | Garrison Relay disabled 10754 | -8/Garrison | Garrison Relay disabled 10844 | -8/Garrison | Attempted to access garrison exit controls, blocked by remote lockdown 11233 | -8/Garrison | System corruption reached 10% 11233 | -8/Garrison | Entered Materials 11526 | -8/Materials | Build established: Scavenger-Mutant 11633 | -8/Materials | First assault squad dispatched 11742 | -8/Materials | Destroyed 9 combat bots 12351 | -8/Materials | Discovered new exit (range 5) 12396 | -8/Materials | Identified exit to Garrison 12396 | -8/Materials | Entered Garrison 12442 | -8/Garrison | Triggered checkpoint 12711 | -8/Garrison | Build established: Mutant 12752 | -8/Garrison | Triggered checkpoint 12794 | -8/Garrison | Destroyed 7 combat bots 12917 | -8/Garrison | Discovered new exit (range 10) 12938 | -8/Garrison | Triggered checkpoint 13092 | -8/Garrison | Triggered checkpoint 13210 | -8/Garrison | Triggered checkpoint 13305 | -8/Garrison | Discovered new exit (range 15) 13418 | -8/Garrison | Triggered checkpoint 13452 | -8/Garrison | Triggered checkpoint 13499 | -8/Garrison | Learned Materials security intel 13524 | -8/Garrison | Identified exit to Materials 13671 | -8/Garrison | Triggered checkpoint 13895 | -8/Garrison | Entered Materials 14188 | -8/Materials | Discovered new exit (range 5) 14359 | -8/Materials | Core integrity fell below 20% 14361 | -8/Materials | Build established: Scavenger-Mutant 14406 | -8/Materials | Entered Factory 14406 | -7/Factory | Evolved 2 slots: Utility x2 14418 | -7/Factory | Identified Exp. Sensor Array 15107 | -7/Factory | Lost 5 parts (3n2u) 15331 | -7/Factory | Assembled infested ambush trap array 15379 | -7/Factory | Build established: Mutant 15380 | -7/Factory | Lost 4 parts (1n2u1w) 15432 | -7/Factory | Discovered new exit (range 9) 16018 | -7/Factory | Self-destructed Last Messages --------------- 15677_ U-05 Engineer lays Concrete. 15679_ U-05 Engineer builds a Wall. 15679_ Bomb Drone detonates. 15679_ Bomb Drone destroyed. 15689_ U-05 Engineer lays Concrete. 15690_ U-05 Engineer builds a Wall. 15694_ U-05 Engineer builds a Door. 15698_ U-05 Engineer lays Concrete. 15698_ U-05 Engineer builds a Wall. 15699_ U-05 Engineer builds a Door. 15704_ U-05 Engineer builds a Wall. 15970_ O-24 Administrator sends out distress signal. 15970_ O-24 Administrator: "IFF HANDSHAKE FAILED. SECURING TERMINAL." 15973_ Bomb Drone detonates. 15973_ Bomb Drone destroyed. 15985_ ALERT: Hostiles spotted, dispatching reinforcements to Terminal F019. 16010_ U-05 Engineer lays Concrete. 16017_ Critical hit (Burn: +37). 16018_ U-05 Engineer lays Concrete. Map ----- +----------------------------------------------------+ | ??????????????????????????????????????# | | ??????????????????????????????????????####"####### | | ????????????????????##########??##############???? | | ????????????????#?? #??# #???? | | ????????????????# #??# #???? | | ????????????????# """""" #??# """" #???? | | ????????????????# """""" #??# """" #???? | | ????????????????# """""" ! #??# """" #???? | | ????????????????# """""" #??# """" * #???? | | ????????????????# #??# *! #???? | | ????????????????# #??# """" !! #???? | | ????????????????# """ #??# """" #???? | | ????????????????# "Y ! #??# """" #???? | | ????????????????# """ ##?# """" ! #???? | | ????????????????# #### #???? | | ??????????????#########+##############+########### | | ?############## | | ?# # | | ?# # % | | ?# # | | ?# # g % | | ?# # ####g########### ######### | | ?# # # # # # ###?# #???????? | | ?# # ####;#########?# #???????? | | ?# # # #?# #???????? | | ?# =#% # @ #?# #???????? | | ?# %+ %g #?# #???????? | | ?# # #* #?# #???????? | | ?# [ # # % #?# #???????? | | ?############ # # #?# #???????? | | ?????# # #?# #???????? | | ?????# # % " #?# +???????? | | ?????# < # "" ### #???????? | | ?????# # R" # #???????? | | ?????# # """ # = #???????? | | ?????############## # # %= #???????? | | ??????????????????######### ###### #######?? | | ???????????????????# # # | | ???????????????????### ### + | | ?????????????????????###?## u # | | ????????????????????????# # # | | ????????????????????????# # # | | ????????????????????????# # # ###+##### | | ????????????????????????# # # #???????? | | ????????????????????????# # # #???????? | | ????????????????????????### # #???????? | | ?????????????????????????########### #???????? | | ?????????????????????????######"#### #???????? | | ??????????????????????????????""???# #???????? | | ??????????????????????????????""???? #???????? | +----------------------------------------------------+ Best States ------------- Heat Dissipation 53 Coolant Potential 80 Energy Generation 17 Energy Capacity 300 Matter Stores 300 Matter Capacity 300 Sight Range 20 Terrain Scan Density 10 Armor Coverage 450 Evasion (%) 40 Targeting Accuracy 8 Core Analysis 6 Recoil Reduction 4 Matter Filtering 30 Salvage Targeting 3 Offensive Hacking 10 Defensive Hacking 10 Item Schematics ----------------- Transport Network Coupler | -9/Materials | Scanalyzed Hcp. Storage Unit | -9/Materials | Scanalyzed Lgt. Treads | -9/Materials | Scanalyzed Robot Schematics ------------------ None Fabricated ------------ Nothing Alien Tech Used ----------------- None Achievements -------------- None Challenges ------------ None Game ------ Seed FortressSpliceSpear Manual? 0 Play Time 01:09:28 Cumulative 188.3 hours Start 2024.02.09 @ 21:22:10 End 2024.02.10 @ 07:15:40 Sessions 3 Manual Loads 0 Difficulty Rogue Special Mode None Game No. 154 Rogue 154 Adventurer 0 Explorer 0 Win Type - Total 3 Types 3/0/0/0/0/0/0/0/0 Lore% 62 Gallery% 71 Achievement% 60 Wizard Run 0 Options --------- ASCII 0 Keyboard 1 Movement Numpad Keybinds 0 Fullscreen 2 Font 18/SmallcapsGlow Map View 76x50 Tactical HUD 1 Map Filters NONE Filters NONE Steam 1 RUN: 77d80776-e00c-4617-8e73-bfa8d0258d7a